fUSD/lending_fUSD_20250414
["ID","MTS","AMOUNT","RATE_DAILY","PERIOD"]
[357986714,1744643469166,-2249.04,0.00017997,2]
[357986715,1744643469176,-500.0,0.00017997,2]
[357986716,1744643469186,-651.43,0.00017997,2]
[357986717,1744643469195,-500.0,0.00017997,2]
[357986718,1744643469206,-2249.04,0.00017997,2]
[357986719,1744643469216,-651.43,0.00017997,2]
[357986720,1744643469226,-500.0,0.00017997,2]
[357986721,1744643469235,-2249.04,0.00017997,2]
[357986722,1744643469245,-651.43,0.00017997,2]
[357986723,1744643469255,-500.0,0.00017997,2]
[357986724,1744643469264,-2249.04,0.00017997,2]
[357986725,1744643469274,-651.43,0.00017997,2]
[357986726,1744643469283,-2249.04,0.00017997,2]
[357986727,1744643469293,-500.0,0.00017997,2]
[357986728,1744643469302,-288.61,0.00017997,2]
[357986729,1744643469312,-651.43,0.00017997,2]
[357986730,1744643469322,-2249.04,0.00017997,2]
[357986731,1744643469332,-734.67,0.00017997,2]
[357986732,1744643469342,-651.43,0.00017997,2]
[357986733,1744643469352,-734.67,0.00017997,2]
[357986734,1744643469362,-2249.04,0.00017997,2]
[357986735,1744643469372,-651.43,0.00017997,2]
[357986736,1744643469382,-734.67,0.00017997,2]
[357986737,1744643469392,-2249.04,0.00017997,2]
[357986738,1744643469404,-651.43,0.00017997,2]
[357986739,1744643469414,-2249.04,0.00017997,2]
[357986740,1744643469424,-734.67,0.00017997,2]
[357986741,1744643469434,-651.43,0.00017997,2]
[357986742,1744643469444,-734.67,0.00017997,2]
[357986743,1744643469453,-2249.04,0.00017997,2]
[357986744,1744643469463,-651.43,0.00017997,2]
[357986745,1744643469473,-500.0,0.00017997,2]
[357986746,1744643469483,-2249.04,0.00017997,2]
[357986747,1744643469493,-734.67,0.00017997,2]
[357986748,1744643469503,-651.43,0.00017997,2]
[357986749,1744643469513,-2249.04,0.00017997,2]
[357986750,1744643469524,-651.43,0.00017997,2]
[357986751,1744643469534,-500.0,0.00017997,2]
[357986752,1744643469544,-734.67,0.00017997,2]
[357986753,1744643469554,-651.43,0.00017997,2]
[357986754,1744643469564,-500.0,0.00017997,2]
[357986755,1744643469575,-500.0,0.00017997,2]
[357986756,1744643469586,-2249.04,0.00017997,2]
[357986757,1744643469597,-734.67,0.00017997,2]
[357986758,1744643469609,-651.43,0.00017997,2]
[357986759,1744643469620,-527.96883473,0.00017997,2]
[357986760,1744643469631,-575.59794015,0.00017997,2]
[357986761,1744643469643,-2249.04,0.00017997,2]
[357986762,1744643469661,-734.67,0.00017997,2]
[357986763,1744643469673,-651.43,0.00017997,2]
[357986764,1744643469802,-2249.04,0.00017997,2]
[357986765,1744643469814,-734.67,0.00017997,2]
[357986766,1744643469825,-651.43,0.00017997,2]
[357986767,1744643469836,-2249.04,0.00017997,2]
[357986768,1744643469846,-734.67,0.00017997,2]
[357986769,1744643469857,-651.43,0.00017997,2]
[357986770,1744643469869,-2249.04,0.00017997,2]
[357986771,1744643469879,-734.67,0.00017997,2]
[357986772,1744643469890,-651.43,0.00017997,2]
[357986773,1744643469908,-2249.04,0.00017997,2]
[357986774,1744643469919,-734.67,0.00017997,2]
[357986775,1744643469930,-651.51624668,0.00017997,2]
[357986776,1744643469941,-2249.04,0.00017997,2]
[357986777,1744643469951,-734.67,0.00017997,2]
[357986778,1744643469961,-2249.04,0.00017997,2]
[357986779,1744643469972,-734.67,0.00017997,2]
[357986780,1744643469984,-2249.04917758,0.00017997,2]
[357986781,1744643469995,-734.67,0.00017997,2]
[357986782,1744643470005,-500.0,0.00017997,2]
[357986783,1744643470016,-734.67,0.00017997,2]
[357986784,1744643470028,-208.94710248,0.00017997,2]
[357986785,1744643470039,-734.67,0.00017997,2]
[357986786,1744643470050,-734.67,0.00017997,2]
[357986787,1744643470060,-734.69,0.00017997,2]
[357986788,1744643470071,-500.0,0.00017997,2]
[357986789,1744643470083,-500.0,0.00017997,2]
[357986790,1744643470093,-500.0,0.00017997,2]
[357986791,1744643470103,-500.0,0.00017997,2]
[357986792,1744643470113,-500.0,0.00017997,2]
[357986793,1744643470123,-500.0,0.00017997,2]
[357986794,1744643470132,-500.0,0.00017997,2]
[357986795,1744643470141,-500.0,0.00017997,2]
[357986796,1744643470155,-500.0,0.00017997,2]
[357986797,1744643470163,-151.30727381,0.00017997,2]
[357986798,1744643470173,-500.0,0.00017997,2]
[357986799,1744643470183,-500.0,0.00017997,2]
[357986800,1744643470191,-500.0,0.00017997,2]
[357986801,1744643470201,-500.0,0.00017997,2]
[357986802,1744643470211,-500.0,0.00017997,2]
[357986803,1744643470221,-500.0,0.00017997,2]
[357986804,1744643470231,-500.0,0.00017997,2]
[357986805,1744643470240,-500.0,0.00017997,2]
[357986806,1744643470250,-510.74019234,0.00017997,2]
[357986807,1744643470259,-500.0,0.00017997,2]
[357986808,1744643470269,-500.0,0.00017997,2]
[357986809,1744643470279,-500.0,0.00017997,2]
[357986810,1744643470288,-500.0,0.00017997,2]
[357986811,1744643470298,-500.0,0.00017997,2]
[357986812,1744643470308,-500.0,0.00017997,2]
[357986813,1744643470318,-500.0,0.00017997,2]
[357986814,1744643470327,-219.47822987,0.00017997,2]
[357986815,1744643470337,-500.0,0.00017997,2]
[357986816,1744643470346,-500.0,0.00017997,2]
[357986817,1744643470355,-500.0,0.00017997,2]
[357986818,1744643470365,-483.93465922,0.00017997,2]
[357986819,1744643470374,-500.0,0.00017997,2]
[357986820,1744643470385,-500.0,0.00017997,2]
[357986821,1744643470397,-500.0,0.00017997,2]
[357986822,1744643470408,-500.0,0.00017997,2]
[357986823,1744643470417,-500.0,0.00017997,2]
[357986824,1744643470427,-500.0,0.00017997,2]
[357986825,1744643470437,-500.0,0.00017997,2]
[357986826,1744643470447,-500.0,0.00017997,2]
[357986827,1744643470457,-500.0,0.00017997,2]
[357986828,1744643470467,-500.0,0.00017997,2]
[357986829,1744643470477,-500.0,0.00017997,2]
[357986830,1744643470487,-500.0,0.00017997,2]
[357986831,1744643470496,-500.0,0.00017997,2]
[357986832,1744643470506,-500.0,0.00017997,2]
[357986833,1744643470516,-500.0,0.00017997,2]
[357986834,1744643470525,-330.47,0.00017997,2]
[357986835,1744643470535,-500.0,0.00017997,2]
[357986836,1744643470545,-500.0,0.00017997,2]
[357986837,1744643470554,-500.0,0.00017997,2]
[357986838,1744643470564,-500.0,0.00017997,2]
[357986839,1744643470574,-500.0,0.00017997,2]
[357986840,1744643470583,-500.0,0.00017997,2]
[357986841,1744643470593,-500.0,0.00017997,2]
[357986842,1744643470603,-500.0,0.00017997,2]
[357986843,1744643470612,-500.0,0.00017997,2]
[357986844,1744643470622,-500.0,0.00017997,2]
[357986845,1744643470631,-529.35,0.00017997,2]
[357986846,1744643470640,-500.0,0.00017997,2]
[357986847,1744643470652,-500.0,0.00017997,2]
[357986848,1744643470662,-540.65538077,0.00017997,2]
[357986849,1744643470672,-500.0,0.00017997,2]
[357986850,1744643470682,-500.0,0.00017997,2]
[357986851,1744643470692,-244629.46,0.00017997,2]
[357986852,1744643470702,-244629.46,0.00017997,2]
[357986853,1744643470711,-244629.46,0.00017997,2]
[357986854,1744643470721,-4101.99,0.00017997,2]
[357986855,1744643470730,-500.0,0.00017997,2]
[357986856,1744643470740,-244629.46,0.00017997,2]
[357986857,1744643470750,-4101.99,0.00017997,2]
[357986858,1744643470764,-244629.46,0.00017997,2]
[357986859,1744643470774,-4101.99,0.00017997,2]
[357986860,1744643470784,-244629.46,0.00017997,2]
[357986861,1744643470795,-500.0,0.00017997,2]
[357986862,1744643470805,-4101.99,0.00017997,2]
[357986863,1744643470815,-244629.46,0.00017997,2]
[357986864,1744643470824,-500.0,0.00017997,2]
[357986865,1744643470837,-4101.99,0.00017997,2]
[357986866,1744643470847,-244629.46,0.00017997,2]
[357986867,1744643470856,-500.0,0.00017997,2]
[357986868,1744643470866,-4101.99,0.00017997,2]
[357986869,1744643470876,-244629.46,0.00017997,2]
[357986870,1744643470886,-500.0,0.00017997,2]
[357986871,1744643470899,-4101.99,0.00017997,2]
[357986872,1744643470908,-244629.46,0.00017997,2]
[357986873,1744643470919,-500.0,0.00017997,2]
[357986874,1744643470929,-4101.99,0.00017997,2]
[357986875,1744643470940,-500.0,0.00017997,2]
[357986876,1744643470949,-244629.46,0.00017997,2]
[357986877,1744643470959,-4101.99,0.00017997,2]
[357986878,1744643470969,-500.0,0.00017997,2]
[357986879,1744643470979,-4101.99,0.00017997,2]
[357986880,1744643470990,-500.0,0.00017997,2]
[357986881,1744643471000,-4101.99,0.00017997,2]
[357986882,1744643471010,-244629.46,0.00017997,2]
[357986883,1744643471021,-500.0,0.00017997,2]
[357986884,1744643471031,-4101.99,0.00017997,2]
[357986885,1744643471041,-100691.88631914,0.00017997,2]
[357986886,1744643472333,-500.0,0.00017896,2]
[357986887,1744643472348,-500.0,0.00017896,2]
[357986888,1744643472364,-1244.16673984,0.00017997,2]
[357986889,1744643474592,-402.67,0.00017997,2]
[357986890,1744643474613,-386.08041949,0.00017997,2]
[357986891,1744643474635,-141904.65652153,0.00017997,2]
[357986892,1744643474645,-4101.99,0.00017997,2]
[357986893,1744643474656,-54765.44428706,0.00017997,2]
[357986894,1744643474672,-2923.96263016,0.00017997,2]
[357986898,1744643521650,-835.31489843,0.00017796,2]
[357986899,1744643549564,248.88953447,0.00017996,5]
[357986900,1744643708975,201.17,0.00017027,2]
[357986901,1744644035465,326.05,0.00017375,2]
[357986902,1744644160986,2125.61,0.0001697,2]
[357986903,1744644282111,1251.99,0.00015019,2]
[357986904,1744644282691,1251.99,0.00017283,2]
[357986907,1744644446807,2000.0,0.00017017,2]
[357986908,1744644454227,-250.0,0.0001766,2]
[357986909,1744644454253,-298.35664822,0.00017723,2]
[357986910,1744644454277,-300.0,0.00017795,2]
[357986911,1744644454300,-300.0,0.00017795,2]
[357986912,1744644454324,-4028.01055487,0.00017796,2]
[357986914,1744644527935,590.77,0.00017017,2]
[357986916,1744644578738,-2453.93873722,0.00017795,2]
[357986919,1744644578802,-46.06126278,0.00017795,2]
[357986922,1744644578834,-1398.2041467,0.00017796,2]
[357986925,1744644579019,-246.6137,0.00017796,2]
[357986926,1744644579053,-763.05962774,0.00017796,2]
[357986927,1744644579110,-236.94037226,0.00017796,2]
[357986928,1744644579143,-250.0,0.00017796,2]
[357986929,1744644579174,-258.02538809,0.00017796,2]
[357986930,1744644579207,-1672.749,0.00017796,2]
[357986931,1744644579240,-36.22397687,0.00017797,2]
[357986932,1744644579289,-1307.99135736,0.00017797,2]
[357986937,1744644614437,1000.0,0.00016942,2]
[357986954,1744644631484,-5465.82120588,0.00017795,2]
[357986955,1744644631494,-300.0,0.00017796,2]
[357986956,1744644631503,-2567.86685569,0.00017797,2]
[357986957,1744644631514,-3150.65698037,0.00017797,2]
[357986958,1744644631569,-779.89190332,0.00017797,2]
[357987185,1744644638019,-439.83457297,0.00017797,2]
[357987203,1744644639736,-338.44,0.00017797,2]
[357987204,1744644639913,-28604.24955342,0.00017797,2]
[357987205,1744644639924,-500.0,0.00017797,2]
[357987206,1744644639939,-1000.0,0.00017797,2]
[357987207,1744644639959,-36109.7198,0.00017797,2]
[357987208,1744644639970,-5465.82120585,0.00017806,2]
[357987209,1744644639981,-250.0,0.00017835,2]
[357987210,1744644639991,-500.0,0.00017873,2]
[357987211,1744644640002,-500.0,0.00017895,2]
[357987212,1744644640011,-500.0,0.00017895,2]
[357987213,1744644640022,-500.0,0.00017895,2]
[357987214,1744644640031,-500.0,0.00017895,2]
[357987215,1744644640040,-500.0,0.00017895,2]
[357987216,1744644640051,-500.0,0.00017895,2]
[357987217,1744644640062,-500.0,0.00017895,2]
[357987218,1744644640072,-501.50399477,0.00017895,2]
[357987219,1744644640083,-500.0,0.00017895,2]
[357987220,1744644640093,-500.0,0.00017895,2]
[357987221,1744644640103,-500.0,0.00017895,2]
[357987222,1744644640115,-500.0,0.00017895,2]
[357987223,1744644640127,-500.0,0.00017895,2]
[357987224,1744644640138,-500.0,0.00017895,2]
[357987225,1744644640148,-500.0,0.00017895,2]
[357987226,1744644640159,-500.0,0.00017895,2]
[357987227,1744644640170,-500.0,0.00017895,2]
[357987228,1744644640180,-505.34886597,0.00017895,2]
[357987229,1744644640189,-500.0,0.00017895,2]
[357987230,1744644640199,-501.90361517,0.00017895,2]
[357987231,1744644640209,-500.0,0.00017895,2]
[357987232,1744644640219,-500.0,0.00017895,2]
[357987233,1744644640229,-500.0,0.00017895,2]
[357987234,1744644640239,-500.0,0.00017895,2]
[357987235,1744644640248,-500.0,0.00017895,2]
[357987236,1744644640258,-500.0,0.00017895,2]
[357987237,1744644640267,-500.0,0.00017895,2]
[357987238,1744644640276,-587.57,0.00017895,2]
[357987239,1744644640286,-500.0,0.00017895,2]
[357987240,1744644640296,-500.0,0.00017895,2]
[357987241,1744644640305,-500.0,0.00017895,2]
[357987242,1744644640314,-500.0,0.00017895,2]
[357987243,1744644640326,-527.66009093,0.00017895,2]
[357987244,1744644640338,-515.52329973,0.00017895,2]
[357987246,1744644640348,-500.0,0.00017895,2]
[357987247,1744644640357,-298.04157827,0.00017895,2]
[357987248,1744644640367,-500.0,0.00017895,2]
[357987249,1744644640376,-500.0,0.00017895,2]
[357987250,1744644640386,-500.0,0.00017895,2]
[357987251,1744644640396,-503.82602837,0.00017895,2]
[357987252,1744644640406,-500.0,0.00017895,2]
[357987254,1744644640415,-500.0,0.00017895,2]
[357987255,1744644640424,-767.37,0.00017895,2]
[357987256,1744644640434,-500.0,0.00017895,2]
[357987257,1744644640444,-500.0,0.00017895,2]
[357987258,1744644640454,-500.0,0.00017895,2]
[357987259,1744644640464,-594.69514352,0.00017895,2]
[357987260,1744644640474,-500.0,0.00017895,2]
[357987261,1744644640484,-500.0,0.00017895,2]
[357987262,1744644640494,-500.0,0.00017895,2]
[357987263,1744644640504,-500.0,0.00017895,2]
[357987264,1744644640514,-500.0,0.00017895,2]
[357987265,1744644640523,-500.0,0.00017895,2]
[357987266,1744644640533,-500.0,0.00017895,2]
[357987267,1744644640542,-500.0,0.00017895,2]
[357987268,1744644640552,-500.0,0.00017895,2]
[357987269,1744644640561,-500.0,0.00017895,2]
[357987270,1744644640570,-500.0,0.00017895,2]
[357987271,1744644640580,-561.26,0.00017895,2]
[357987272,1744644640589,-500.0,0.00017895,2]
[357987273,1744644640599,-500.0,0.00017895,2]
[357987274,1744644640609,-500.0,0.00017895,2]
[357987275,1744644640619,-500.0,0.00017895,2]
[357987276,1744644640628,-500.0,0.00017895,2]
[357987277,1744644640639,-500.0,0.00017895,2]
[357987278,1744644640649,-500.0,0.00017895,2]
[357987279,1744644640661,-500.0,0.00017895,2]
[357987280,1744644640670,-500.0,0.00017895,2]
[357987281,1744644640679,-500.0,0.00017895,2]
[357987282,1744644640689,-500.0,0.00017895,2]
[357987283,1744644640699,-500.0,0.00017895,2]
[357987284,1744644640709,-500.0,0.00017895,2]
[357987285,1744644640719,-500.0,0.00017895,2]
[357987286,1744644640729,-500.0,0.00017895,2]
[357987287,1744644640739,-512.16,0.00017895,2]
[357987288,1744644640749,-539.63337305,0.00017895,2]
[357987289,1744644640759,-500.0,0.00017895,2]
[357987290,1744644640770,-500.0,0.00017895,2]
[357987291,1744644640780,-500.0,0.00017895,2]
[357987292,1744644640789,-500.0,0.00017895,2]
[357987293,1744644640799,-500.0,0.00017895,2]
[357987294,1744644640809,-612.12,0.00017895,2]
[357987295,1744644640820,-500.0,0.00017895,2]
[357987296,1744644640831,-500.0,0.00017895,2]
[357987297,1744644640841,-500.0,0.00017895,2]
[357987298,1744644640851,-500.0,0.00017895,2]
[357987299,1744644640860,-500.0,0.00017895,2]
[357987300,1744644640870,-500.0,0.00017895,2]
[357987301,1744644640879,-500.0,0.00017895,2]
[357987302,1744644640890,-500.0,0.00017895,2]
[357987303,1744644640899,-1055.53,0.00017895,2]
[357987304,1744644640910,-500.0,0.00017895,2]
[357987305,1744644640920,-500.0,0.00017895,2]
[357987306,1744644640930,-504.73804776,0.00017895,2]
[357987307,1744644640940,-500.0,0.00017895,2]
[357987308,1744644640950,-505.58393204,0.00017895,2]
[357987309,1744644640959,-525.56680221,0.00017895,2]
[357987310,1744644640969,-500.0,0.00017895,2]
[357987311,1744644640979,-610.71057514,0.00017895,2]
[357987312,1744644640988,-500.0,0.00017895,2]
[357987313,1744644640998,-500.0,0.00017895,2]
[357987314,1744644641008,-500.0,0.00017895,2]
[357987315,1744644641018,-500.0,0.00017895,2]
[357987316,1744644641027,-500.0,0.00017895,2]
[357987317,1744644641037,-500.0,0.00017895,2]
[357987318,1744644641047,-500.0,0.00017895,2]
[357987319,1744644641056,-520.06541968,0.00017895,2]
[357987320,1744644641066,-511.8466156,0.00017895,2]
[357987321,1744644641076,-500.0,0.00017895,2]
[357987322,1744644641087,-575.8342513,0.00017895,2]
[357987323,1744644641096,-464.78,0.00017895,2]
[357987324,1744644641106,-500.0,0.00017895,2]
[357987325,1744644641119,-500.0,0.00017895,2]
[357987326,1744644641129,-500.0,0.00017895,2]
[357987327,1744644641140,-500.3345286,0.00017895,2]
[357987328,1744644641150,-500.0,0.00017895,2]
[357987329,1744644641159,-510.5480686,0.00017895,2]
[357987330,1744644641169,-500.0,0.00017895,2]
[357987331,1744644641181,-500.0,0.00017895,2]
[357987332,1744644641192,-500.0,0.00017895,2]
[357987333,1744644641202,-500.0,0.00017895,2]
[357987334,1744644641212,-500.0,0.00017895,2]
[357987335,1744644641222,-500.0,0.00017895,2]
[357987336,1744644641232,-500.0,0.00017895,2]
[357987337,1744644641241,-627.47551449,0.00017895,2]
[357987338,1744644641251,-500.0,0.00017895,2]
[357987339,1744644641262,-500.0,0.00017895,2]
[357987340,1744644641272,-650.89,0.00017895,2]
[357987341,1744644641282,-506.46097832,0.00017895,2]
[357987342,1744644641292,-500.0,0.00017895,2]
[357987343,1744644641302,-500.0,0.00017895,2]
[357987344,1744644641312,-500.0,0.00017895,2]
[357987345,1744644641321,-500.0,0.00017895,2]
[357987346,1744644641332,-711.53,0.00017895,2]
[357987347,1744644641342,-500.0,0.00017895,2]
[357987348,1744644641352,-500.0,0.00017895,2]
[357987349,1744644641361,-500.0,0.00017895,2]
[357987350,1744644641371,-500.0,0.00017895,2]
[357987351,1744644641380,-530.46016912,0.00017895,2]
[357987352,1744644641389,-556.58211105,0.00017895,2]
[357987353,1744644641399,-548.4387586,0.00017895,2]
[357987354,1744644641573,-522.5783025,0.00017895,2]
[357987355,1744644641585,-500.0,0.00017895,2]
[357987356,1744644641595,-500.0,0.00017895,2]
[357987357,1744644641606,-508.66867901,0.00017895,2]
[357987358,1744644641616,-527.1241823,0.00017895,2]
[357987359,1744644641626,-500.0,0.00017895,2]
[357987360,1744644641636,-518.14824474,0.00017895,2]
[357987361,1744644641645,-500.0,0.00017895,2]
[357987362,1744644641655,-500.0,0.00017895,2]
[357987363,1744644641665,-513.51571761,0.00017895,2]
[357987364,1744644641674,-524.69383441,0.00017895,2]
[357987365,1744644641683,-500.0,0.00017895,2]
[357987366,1744644641694,-369.59838216,0.00017895,2]
[357987367,1744644641704,-500.0,0.00017895,2]
[357987368,1744644641714,-500.0,0.00017895,2]
[357987369,1744644641724,-170.75469202,0.00017895,2]
[357987370,1744644641734,-500.0,0.00017895,2]
[357987371,1744644641744,-562.77,0.00017895,2]
[357987372,1744644641754,-500.0,0.00017895,2]
[357987373,1744644641764,-500.0,0.00017895,2]
[357987374,1744644641773,-500.0,0.00017895,2]
[357987375,1744644641783,-568.32,0.00017895,2]
[357987376,1744644641793,-504.9858774,0.00017895,2]
[357987377,1744644641803,-500.0,0.00017895,2]
[357987378,1744644641812,-303.83257303,0.00017895,2]
[357987379,1744644641821,-500.0,0.00017895,2]
[357987380,1744644641831,-152.3177678,0.00017895,2]
[357987381,1744644641840,-500.0,0.00017895,2]
[357987382,1744644641850,-500.0,0.00017895,2]
[357987383,1744644641860,-500.0,0.00017895,2]
[357987384,1744644641870,-500.0,0.00017895,2]
[357987385,1744644641880,-524.91706412,0.00017895,2]
[357987386,1744644641890,-500.0,0.00017895,2]
[357987387,1744644641899,-500.0,0.00017895,2]
[357987388,1744644641909,-365.7464331,0.00017895,2]
[357987389,1744644641918,-500.0,0.00017895,2]
[357987390,1744644641928,-161.36703741,0.00017895,2]
[357987391,1744644641937,-500.0,0.00017895,2]
[357987392,1744644641947,-500.0,0.00017895,2]
[357987393,1744644641956,-500.0,0.00017895,2]
[357987394,1744644641966,-500.0,0.00017895,2]
[357987395,1744644641976,-500.0,0.00017895,2]
[357987396,1744644641986,-500.0,0.00017895,2]
[357987397,1744644641996,-500.0,0.00017895,2]
[357987398,1744644642005,-500.0,0.00017895,2]
[357987399,1744644642015,-500.0,0.00017895,2]
[357987400,1744644642025,-1275.84,0.00017895,2]
[357987401,1744644642035,-512.2267175,0.00017895,2]
[357987402,1744644642046,-500.0,0.00017895,2]
[357987403,1744644642056,-501.89410776,0.00017895,2]
[357987404,1744644642065,-527.98098206,0.00017895,2]
[357987405,1744644642075,-1705.91,0.00017895,2]
[357987406,1744644642086,-500.0,0.00017895,2]
[357987407,1744644642096,-500.0,0.00017895,2]
[357987408,1744644642106,-518.00173786,0.00017895,2]
[357987409,1744644642120,-500.0,0.00017895,2]
[357987410,1744644642130,-500.0,0.00017895,2]
[357987411,1744644642140,-500.0,0.00017895,2]
[357987412,1744644642149,-500.0,0.00017895,2]
[357987413,1744644642159,-938.34,0.00017895,2]
[357987414,1744644642170,-606.7,0.00017895,2]
[357987415,1744644642179,-500.0,0.00017895,2]
[357987416,1744644642189,-500.0,0.00017895,2]
[357987417,1744644642198,-809.24,0.00017895,2]
[357987418,1744644642209,-500.0,0.00017895,2]
[357987419,1744644642219,-746.9,0.00017895,2]
[357987420,1744644642228,-600.28,0.00017895,2]
[357987421,1744644642238,-930.58,0.00017895,2]
[357987422,1744644642248,-219.47822987,0.00017895,2]
[357987423,1744644642257,-500.0,0.00017895,2]
[357987424,1744644642267,-612.22,0.00017895,2]
[357987425,1744644642278,-500.0,0.00017895,2]
[357987426,1744644642287,-584.53,0.00017895,2]
[357987427,1744644642297,-557.32,0.00017895,2]
[357987428,1744644642307,-199.73971141,0.00017895,2]
[357987429,1744644642320,-500.0,0.00017895,2]
[357987430,1744644642333,-1144.0,0.00017895,2]
[357987431,1744644642343,-536.21001164,0.00017895,2]
[357987432,1744644642354,-500.0,0.00017895,2]
[357987433,1744644642365,-2249.04,0.00017895,2]
[357987434,1744644642376,-500.0,0.00017895,2]
[357987435,1744644642386,-500.0,0.00017895,2]
[357987436,1744644642396,-500.0,0.00017895,2]
[357987438,1744644642406,-500.0,0.00017895,2]
[357987439,1744644642415,-500.0,0.00017895,2]
[357987440,1744644642427,-3247.41,0.00017895,2]
[357987441,1744644642436,-500.0,0.00017895,2]
[357987443,1744644642446,-500.0,0.00017895,2]
[357987445,1744644642455,-500.0,0.00017895,2]
[357987447,1744644642465,-241078.6,0.00017895,2]
[357987451,1744644642475,-509.32418167,0.00017895,2]
[357987453,1744644642485,-547.86,0.00017895,2]
[357987455,1744644642495,-605.69,0.00017895,2]
[357987456,1744644642505,-748.54,0.00017895,2]
[357987458,1744644642515,-500.0,0.00017895,2]
[357987460,1744644642525,-1480.93,0.00017895,2]
[357987462,1744644642536,-500.0,0.00017895,2]
[357987464,1744644642545,-500.0,0.00017895,2]
[357987465,1744644642555,-4900.46,0.00017895,2]
[357987466,1744644642565,-500.0,0.00017895,2]
[357987467,1744644642575,-500.0,0.00017895,2]
[357987469,1744644642587,-513.79323544,0.00017895,2]
[357987470,1744644642597,-503.13349198,0.00017895,2]
[357987472,1744644642607,-520.81677829,0.00017895,2]
[357987474,1744644642616,-666.71,0.00017895,2]
[357987475,1744644642626,-500.0,0.00017895,2]
[357987477,1744644642635,-500.0,0.00017895,2]
[357987479,1744644642645,-1115.49,0.00017895,2]
[357987480,1744644642654,-548.6040834,0.00017895,2]
[357987482,1744644642664,-500.0,0.00017895,2]
[357987484,1744644642674,-500.0,0.00017895,2]
[357987485,1744644642685,-500.0,0.00017895,2]
[357987487,1744644642695,-500.0,0.00017895,2]
[357987488,1744644642704,-1734.23,0.00017895,2]
[357987489,1744644642714,-500.0,0.00017895,2]
[357987490,1744644642723,-500.52139417,0.00017895,2]
[357987491,1744644642733,-500.0,0.00017895,2]
[357987492,1744644642743,-595.63421715,0.00017895,2]
[357987493,1744644642753,-949.84,0.00017895,2]
[357987494,1744644642763,-512.86312731,0.00017895,2]
[357987495,1744644642772,-500.0,0.00017895,2]
[357987496,1744644642782,-500.0,0.00017895,2]
[357987497,1744644642792,-500.0,0.00017895,2]
[357987498,1744644642801,-500.0,0.00017895,2]
[357987499,1744644642811,-500.0,0.00017895,2]
[357987500,1744644642821,-500.0,0.00017895,2]
[357987501,1744644642831,-4418.31,0.00017895,2]
[357987502,1744644642841,-500.0,0.00017895,2]
[357987503,1744644642851,-500.0,0.00017895,2]
[357987504,1744644642862,-500.0,0.00017895,2]
[357987505,1744644642872,-631.6,0.00017895,2]
[357987506,1744644642882,-500.0,0.00017895,2]
[357987507,1744644642892,-500.0,0.00017895,2]
[357987508,1744644642902,-500.0,0.00017895,2]
[357987509,1744644642912,-795.33,0.00017895,2]
[357987510,1744644642923,-500.0,0.00017895,2]
[357987511,1744644642932,-603.55,0.00017895,2]
[357987512,1744644642943,-1046.18,0.00017895,2]